[Event "The Elitserien 2024/25: round 1 - 3"]
[Site "Scandic Infra City, Kanalvagen 10, Upplands Vasby, Sweden"]
[Date "2024.10.06"]
[Round "3.2"]
[White "Sivuk, Vitaly"]
[Black "Garriga Cazorla, Pere"]
[Result "1/2-1/2"]
[TimeControl "90 minutes for 40 moves + 30 minutes for the rest of the game + 30 seconds per move from move one."]
[WhiteTitle "GM"]
[BlackTitle "IM"]
[WhiteFideId "14116502"]
[BlackFideId "32011601"]
[WhiteElo "2526"]
[BlackElo "2467"]

1. d4 {[%clk 01:19:48]} {[%emt 00:00:12]} Nf6 {[%clk 01:30:19]} {[%emt
00:00:43]} 2. c4 {[%clk 01:19:31]} {[%emt 00:00:46]} e6 {[%clk 01:30:42]}
{[%emt 00:00:07]} 3. Nc3 {[%clk 01:19:33]} {[%emt 00:00:28]} Bb4 {[%clk
01:30:19]} {[%emt 00:00:53]} 4. e3 {[%clk 01:19:50]} {[%emt 00:00:12]} O-O
{[%clk 01:29:48]} {[%emt 00:01:02]} 5. a3 {[%clk 01:18:37]} {[%emt 00:01:43]}
Bxc3+ {[%clk 01:27:03]} {[%emt 00:03:16]} 6. bxc3 {[%clk 01:18:53]} {[%emt
00:00:13]} d5 {[%clk 01:27:00]} {[%emt 00:00:34]} 7. cxd5 {[%clk 01:19:09]}
{[%emt 00:00:14]} exd5 {[%clk 01:27:24]} {[%emt 00:00:05]} 8. Bd3 {[%clk
01:19:31]} {[%emt 00:00:08]} b6 {[%clk 01:22:44]} {[%emt 00:05:11]} 9. Ne2
{[%clk 01:19:12]} {[%emt 00:00:48]} Ba6 {[%clk 01:23:10]} {[%emt 00:00:05]} 10.
Bxa6 {[%clk 01:18:29]} {[%emt 00:01:13]} Nxa6 {[%clk 01:23:35]} {[%emt
00:00:04]} 11. Qd3 {[%clk 01:18:39]} {[%emt 00:00:20]} Qc8 {[%clk 01:24:02]}
{[%emt 00:00:04]} 12. O-O {[%clk 01:10:03]} {[%emt 00:09:05]} c5 {[%clk
01:22:53]} {[%emt 00:01:39]} 13. f3 {[%clk 01:10:13]} {[%emt 00:00:20]} Nc7
{[%clk 01:16:02]} {[%emt 00:07:22]} 14. e4 {[%clk 01:00:09]} {[%emt 00:10:34]}
Qa6 {[%clk 01:11:38]} {[%emt 00:04:54]} 15. Qxa6 {[%clk 00:57:38]} {[%emt
00:03:00]} Nxa6 {[%clk 01:11:51]} {[%emt 00:00:16]} 16. e5 {[%clk 00:57:59]}
{[%emt 00:00:09]} Nd7 {[%clk 01:11:55]} {[%emt 00:00:27]} 17. Nf4 {[%clk
00:58:01]} {[%emt 00:00:28]} Nc7 {[%clk 01:11:12]} {[%emt 00:01:13]} 18. a4
{[%clk 00:53:17]} {[%emt 00:05:14]} Rfe8 {[%clk 00:42:38]} {[%emt 00:29:05]} 19.
Ba3 {[%clk 00:52:50]} {[%emt 00:00:56]} Rac8 {[%clk 00:39:43]} {[%emt
00:03:25]} 20. Rac1 {[%clk 00:41:43]} {[%emt 00:11:37]} f6 {[%clk 00:36:32]}
{[%emt 00:03:42]} 21. exf6 {[%clk 00:41:55]} {[%emt 00:00:17]} Nxf6 {[%clk
00:36:55]} {[%emt 00:00:08]} 22. dxc5 {[%clk 00:41:54]} {[%emt 00:00:30]} Ne6
{[%clk 00:37:10]} {[%emt 00:00:15]} 23. Nxe6 {[%clk 00:41:35]} {[%emt
00:00:49]} Rxe6 {[%clk 00:37:35]} {[%emt 00:00:05]} 24. cxb6 {[%clk 00:41:15]}
{[%emt 00:00:51]} Rxb6 {[%clk 00:37:59]} {[%emt 00:00:05]} 25. Rfd1 {[%clk
00:34:52]} {[%emt 00:06:52]} Rc4 {[%clk 00:25:48]} {[%emt 00:12:43]} 26. Rd4
{[%clk 00:33:16]} {[%emt 00:02:05]} Ra6 {[%clk 00:23:03]} {[%emt 00:03:15]} 27.
Be7 {[%clk 00:20:32]} {[%emt 00:13:13]} Rxd4 {[%clk 00:20:36]} {[%emt
00:02:58]} 28. cxd4 {[%clk 00:20:18]} {[%emt 00:00:43]} Rxa4 {[%clk 00:20:58]}
{[%emt 00:00:09]} 29. Rc8+ {[%clk 00:19:58]} {[%emt 00:00:50]} Kf7 {[%clk
00:21:21]} {[%emt 00:00:08]} 30. Rc7 {[%clk 00:20:21]} {[%emt 00:00:06]} Ra1+
{[%clk 00:20:49]} {[%emt 00:01:02]} 31. Kf2 {[%clk 00:20:35]} {[%emt 00:00:16]}
Ra2+ {[%clk 00:21:15]} {[%emt 00:00:04]} 32. Kg3 {[%clk 00:17:06]} {[%emt
00:03:59]} Nh5+ {[%clk 00:18:41]} {[%emt 00:03:05]} 33. Kh4 {[%clk 00:15:48]}
Kg6 {[%clk 00:18:18]} {[%emt 00:02:41]} 34. Rc6+ {[%emt 00:01:41]} Nf6 35. Kg3
{[%clk 00:14:44]} {[%emt 00:00:42]} Rd2 {[%clk 00:16:50]} {[%emt 00:02:09]} 36.
Bc5 {[%clk 00:08:53]} {[%emt 00:06:20]} a5 {[%clk 00:15:53]} {[%emt 00:01:27]}
37. Ra6 {[%clk 00:09:08]} {[%emt 00:00:15]} Kf5 {[%clk 00:15:45]} {[%emt
00:00:39]} 38. Kh3 {[%clk 00:09:10]} {[%emt 00:00:27]} h5 {[%clk 00:16:10]}
{[%emt 00:00:06]} 39. Bf8 {[%clk 00:06:17]} {[%emt 00:03:21]} g5 {[%clk
00:05:11]} {[%emt 00:11:30]} 40. Bg7 {[%clk 00:05:39]} {[%emt 00:01:07]} g4+
{[%clk 00:04:34]} {[%emt 00:01:09]} 41. Kg3 {[%clk 00:02:50]} {[%emt 00:03:18]}
Ng8 {[%clk 00:01:51]} {[%emt 00:03:13]} 42. h4 {[%clk 00:24:20]} {[%emt
00:09:00]} gxf3 {[%clk 00:23:21]} {[%emt 00:09:00]} 43. gxf3 {[%clk 00:24:40]}
{[%emt 00:00:09]} Rd1 {[%clk 00:23:32]} {[%emt 00:00:20]} 44. Be5 {[%clk
00:23:46]} {[%emt 00:01:23]} Rg1+ {[%clk 00:22:42]} {[%emt 00:01:21]} 45. Kf2
{[%clk 00:24:09]} {[%emt 00:00:06]} Rg6 {[%clk 00:17:51]} {[%emt 00:05:22]} 46.
Rxa5 {[%clk 00:23:42]} {[%emt 00:00:57]} Ne7 {[%clk 00:17:49]} {[%emt
00:00:32]} 47. Ra8 {[%clk 00:22:26]} {[%emt 00:01:46]} Rb6 {[%clk 00:14:07]}
{[%emt 00:04:11]} 48. Rf8+ {[%clk 00:13:05]} {[%emt 00:09:51]} Kg6 {[%clk
00:12:59]} {[%emt 00:01:39]} 49. Kg3 {[%clk 00:12:32]} {[%emt 00:01:03]} Nf5+
{[%clk 00:12:51]} {[%emt 00:00:38]} 50. Kh3 {[%clk 00:12:55]} {[%emt 00:00:07]}
Ne7 {[%clk 00:13:09]} {[%emt 00:00:12]} 51. Rd8 {[%clk 00:11:41]} {[%emt
00:01:43]} Ra6 {[%clk 00:12:10]} {[%emt 00:01:30]} 52. Re8 {[%clk 00:08:36]}
{[%emt 00:03:35]} Kf7 {[%clk 00:11:45]} {[%emt 00:00:56]} 53. Rh8 {[%clk
00:08:40]} {[%emt 00:00:25]} Kg6 {[%clk 00:11:51]} {[%emt 00:00:24]} 54. Rd8
{[%clk 00:06:35]} {[%emt 00:02:34]} Rb6 {[%clk 00:11:55]} {[%emt 00:00:27]} 55.
Kg3 {[%clk 00:04:09]} {[%emt 00:02:55]} Nf5+ {[%clk 00:11:21]} {[%emt
00:01:05]} 56. Kf4 {[%clk 00:04:22]} {[%emt 00:00:17]} Nxh4 {[%clk 00:10:55]}
57. Rxd5 {[%clk 00:03:55]} {[%emt 00:01:53]} Rb3 {[%clk 00:10:46]} 58. Rd6+
{[%clk 00:04:15]} {[%emt 00:00:49]} Kh7 {[%clk 00:10:33]} 59. Rd7+ {[%clk
00:04:11]} {[%emt 00:01:18]} Kh6 {[%clk 00:10:40]} 60. Rd6+ {[%clk 00:02:55]}
{[%emt 00:02:07]} Kh7 {[%clk 00:11:04]} 61. Bf6 {[%clk 00:02:51]} {[%emt
00:00:41]} Nxf3 {[%clk 00:08:42]} {[%emt 00:02:53]} 62. Kf5 {[%clk 00:01:05]}
{[%emt 00:02:15]} Nxd4+ 63. Bxd4 {[%clk 00:01:03]} Rf3+ {[%clk 00:05:42]}
{[%emt 00:01:38]} 64. Kg5 {[%clk 00:01:19]} {[%emt 00:00:13]} Rg3+ {[%clk
00:02:55]} {[%emt 00:03:18]} 65. Kh4 {[%emt 00:01:17]} Rg2 {[%clk 00:01:59]}
{[%emt 00:01:01]} 66. Rd7+ {[%clk 00:00:33]} {[%emt 00:00:54]} Kg8 {[%clk
00:02:26]} {[%emt 00:00:03]} 67. Bf6 {[%clk 00:00:46]} {[%emt 00:00:16]} Rg6
{[%clk 00:02:49]} {[%emt 00:00:08]} 68. Be5 {[%clk 00:00:51]} {[%emt 00:00:24]}
Kf8 {[%clk 00:02:57]} {[%emt 00:00:24]} 69. Kxh5 {[%clk 00:00:38]} {[%emt
00:00:42]} Re6 {[%clk 00:03:24]} {[%emt 00:00:03]} 70. Bf4 {[%clk 00:00:57]}
{[%emt 00:00:10]} Ke8 {[%clk 00:03:51]} {[%emt 00:00:04]} 71. Rd5 {[%clk
00:01:17]} {[%emt 00:00:10]} Kf7 {[%clk 00:03:24]} {[%emt 00:00:57]} 72. Be5
{[%clk 00:01:22]} {[%emt 00:00:25]} Ra6 {[%clk 00:03:33]} {[%emt 00:00:21]} 73.
Kg5 {[%clk 00:01:35]} {[%emt 00:00:16]} Ke6 {[%clk 00:03:59]} {[%emt 00:00:05]}
74. Rb5 {[%clk 00:02:00]} {[%emt 00:00:04]} Ra2 {[%clk 00:04:07]} {[%emt
00:00:23]} 75. Kf4 {[%clk 00:01:15]} {[%emt 00:01:15]} Ra4+ {[%clk 00:04:25]}
{[%emt 00:00:12]} 76. Ke3 {[%clk 00:01:36]} {[%emt 00:00:08]} Ra3+ {[%clk
00:04:50]} {[%emt 00:00:06]} 77. Ke4 {[%clk 00:02:02]} {[%emt 00:00:04]} Ra2
{[%clk 00:04:43]} {[%emt 00:00:38]} 78. Rb6+ {[%clk 00:02:26]} {[%emt
00:00:04]} Kd7 {[%clk 00:05:08]} {[%emt 00:00:06]} 79. Rd6+ {[%clk 00:02:01]}
{[%emt 00:00:55]} Ke7 {[%clk 00:05:18]} {[%emt 00:00:20]} 80. Kf5 {[%clk
00:02:18]} {[%emt 00:00:12]} Rf2+ {[%clk 00:05:40]} {[%emt 00:00:09]} 81. Kg4
{[%clk 00:02:17]} Rf1 {[%clk 00:05:35]} {[%emt 00:01:06]} 82. Ra6 {[%clk
00:02:33]} Kd7 {[%clk 00:05:45]} {[%emt 00:00:34]} 83. Bf4 {[%clk 00:02:52]}
Ke7 {[%clk 00:04:04]} {[%emt 00:02:22]} 84. Kf5 {[%clk 00:03:17]} {[%emt
00:00:05]} Kf7 {[%clk 00:04:28]} {[%emt 00:00:06]} 85. Ra7+ {[%clk 00:03:39]}
{[%emt 00:00:08]} Kf8 {[%clk 00:04:53]} {[%emt 00:00:05]} 86. Ke5 {[%clk
00:03:56]} {[%emt 00:00:13]} Kg8 {[%clk 00:05:20]} {[%emt 00:00:04]} 87. Bg5
{[%clk 00:04:14]} {[%emt 00:00:11]} Rf7 {[%clk 00:05:44]} {[%emt 00:00:06]} 88.
Ra1 {[%clk 00:04:02]} {[%emt 00:00:41]} Rf2 {[%clk 00:04:34]} {[%emt 00:01:40]}
89. Bf6 {[%clk 00:04:07]} {[%emt 00:00:25]} Kf7 {[%clk 00:03:52]} {[%emt
00:01:13]} 90. Ra7+ {[%clk 00:04:32]} {[%emt 00:00:04]} Kg6 {[%clk 00:04:11]}
{[%emt 00:00:13]} 91. Rg7+ {[%clk 00:04:56]} {[%emt 00:00:04]} Kh6 {[%clk
00:04:03]} {[%emt 00:00:39]} 92. Ke6 {[%clk 00:04:28]} {[%emt 00:00:58]} Ra2
{[%clk 00:02:55]} {[%emt 00:01:39]} 93. Rg8 {[%clk 00:04:17]} {[%emt 00:00:40]}
Kh5 {[%clk 00:01:31]} {[%emt 00:01:55]} 94. Rg1 {[%clk 00:04:22]} {[%emt
00:00:24]} Kh6 {[%clk 00:00:50]} {[%emt 00:01:11]} 95. Bd4 {[%clk 00:04:19]}
{[%emt 00:00:32]} Ra3 {[%clk 00:00:51]} {[%emt 00:00:31]} 96. Kf7 {[%clk
00:03:42]} {[%emt 00:01:05]} Kh5 {[%clk 00:01:13]} {[%emt 00:00:09]} 97. Bf6
{[%clk 00:03:25]} {[%emt 00:00:47]} Ra7+ {[%clk 00:01:33]} {[%emt 00:00:11]} 98.
Be7 {[%clk 00:03:14]} {[%emt 00:00:39]} Ra5 {[%clk 00:01:57]} {[%emt 00:00:07]}
99. Ke6 {[%clk 00:03:11]} {[%emt 00:00:33]} Ra2 {[%clk 00:01:55]} {[%emt
00:00:32]} 100. Bc5 {[%clk 00:03:17]} {[%emt 00:00:23]} Ra5 {[%clk 00:01:46]}
{[%emt 00:00:39]} 101. Bd4 {[%clk 00:03:31]} {[%emt 00:00:17]} Rg5 {[%clk
00:01:44]} {[%emt 00:00:32]} 102. Ra1 {[%clk 00:03:49]} {[%emt 00:00:12]} Kg4
{[%clk 00:01:53]} 103. Be5 {[%clk 00:04:12]} {[%emt 00:00:27]} Kf3 {[%clk
00:02:09]} {[%emt 00:00:15]} 104. Kd5 {[%clk 00:04:37]} {[%emt 00:00:05]} Rg8
{[%clk 00:02:23]} {[%emt 00:00:17]} 105. Ra3+ {[%clk 00:04:56]} {[%emt
00:00:10]} Ke2 {[%clk 00:02:46]} {[%emt 00:00:06]} 106. Ke4 {[%clk 00:05:22]}
{[%emt 00:00:04]} Re8 {[%clk 00:03:07]} {[%emt 00:00:09]} 107. Ra2+ {[%clk
00:05:42]} {[%emt 00:00:10]} Ke1 {[%clk 00:03:32]} {[%emt 00:00:06]} 108. Kd4
{[%clk 00:06:04]} {[%emt 00:00:07]} Kf1 {[%clk 00:03:53]} {[%emt 00:00:10]} 109.
Bf4 {[%clk 00:06:12]} {[%emt 00:00:21]} Re2 {[%clk 00:04:19]} {[%emt 00:00:05]}
110. Rxe2 {[%clk 00:06:39]} {[%emt 00:00:03]} Kxe2 {[%clk 00:04:46]} {[%emt
00:00:03]} 111. Ke4 {[%emt 00:00:03]} 1/2-1/2

[Event "The Elitserien 2024/25: round 1 - 3"]
[Site "Scandic Infra City, Kanalvagen 10, Upplands Vasby, Sweden"]
[Date "2024.10.06"]
[Round "3.3"]
[White "Domingo Nunez, Ruben"]
[Black "Miezis, Normunds"]
[Result "1-0"]
[TimeControl "90 minutes for 40 moves + 30 minutes for the rest of the game + 30 seconds per move from move one."]
[WhiteTitle "IM"]
[BlackTitle "GM"]
[WhiteFideId "22245570"]
[BlackFideId "11600136"]
[WhiteElo "2390"]
[BlackElo "2417"]

1. Nf3 {[%clk 01:29:15]} {[%emt 00:01:43]} c5 {[%clk 01:30:36]} {[%emt
00:00:25]} 2. c4 {[%clk 01:29:11]} {[%emt 00:00:34]} Nc6 {[%clk 01:30:01]}
{[%emt 00:01:05]} 3. Nc3 {[%clk 01:29:18]} {[%emt 00:00:24]} e5 {[%clk
01:29:11]} {[%emt 00:01:18]} 4. g3 {[%clk 01:29:07]} {[%emt 00:00:42]} g6
{[%clk 01:29:02]} {[%emt 00:00:39]} 5. Bg2 {[%clk 01:29:28]} {[%emt 00:00:09]}
Bg7 {[%clk 01:29:19]} {[%emt 00:00:12]} 6. d3 {[%clk 01:29:25]} {[%emt
00:00:34]} Nge7 {[%clk 01:29:02]} {[%emt 00:00:48]} 7. Rb1 {[%clk 01:29:42]}
{[%emt 00:00:12]} d6 {[%clk 01:26:31]} {[%emt 00:03:00]} 8. a3 {[%clk
01:30:08]} {[%emt 00:00:06]} a5 {[%clk 01:23:44]} {[%emt 00:03:16]} 9. Bd2
{[%clk 01:30:33]} {[%emt 00:00:06]} O-O {[%clk 01:19:54]} {[%emt 00:04:20]} 10.
h4 {[%clk 01:28:50]} {[%emt 00:02:13]} h5 {[%clk 01:16:47]} {[%emt 00:03:37]}
11. O-O {[%clk 01:13:45]} {[%emt 00:15:34]} Rb8 {[%clk 01:16:50]} {[%emt
00:00:27]} 12. Ng5 {[%clk 01:08:28]} {[%emt 00:05:48]} b6 {[%clk 01:08:24]}
{[%emt 00:08:56]} 13. Nd5 {[%clk 00:58:38]} {[%emt 00:10:20]} f6 {[%clk
00:58:39]} {[%emt 00:10:14]} 14. Nxe7+ {[%clk 00:55:55]} {[%emt 00:03:14]} Nxe7
{[%clk 00:58:50]} {[%emt 00:00:18]} 15. Ne4 {[%clk 00:56:22]} {[%emt 00:00:03]}
Bg4 {[%clk 00:54:54]} {[%emt 00:04:25]} 16. Nc3 {[%clk 00:53:45]} {[%emt
00:03:08]} Qd7 {[%clk 00:51:13]} {[%emt 00:04:11]} 17. b4 {[%clk 00:37:34]}
{[%emt 00:16:41]} axb4 {[%clk 00:47:58]} {[%emt 00:03:45]} 18. axb4 {[%clk
00:38:01]} {[%emt 00:00:03]} Kh7 {[%clk 00:35:58]} {[%emt 00:12:29]} 19. Kh2
{[%clk 00:21:10]} {[%emt 00:17:22]} Nc6 {[%clk 00:31:02]} {[%emt 00:05:26]} 20.
Qa4 {[%clk 00:14:07]} {[%emt 00:07:33]} Nxb4 {[%clk 00:28:23]} {[%emt
00:03:09]} 21. Qxd7 {[%clk 00:14:34]} {[%emt 00:00:04]} Bxd7 {[%clk 00:28:40]}
{[%emt 00:00:12]} 22. Ne4 {[%clk 00:15:02]} {[%emt 00:00:03]} Bg4 {[%clk
00:04:28]} {[%emt 00:24:42]} 23. f3 {[%clk 00:12:17]} {[%emt 00:03:15]} Be6
{[%clk 00:04:50]} {[%emt 00:00:08]} 24. Nxd6 {[%clk 00:11:21]} {[%emt
00:01:26]} Rfd8 {[%clk 00:04:02]} {[%emt 00:01:17]} 25. Ne4 {[%clk 00:11:43]}
{[%emt 00:00:08]} Nc6 {[%clk 00:02:46]} {[%emt 00:01:46]} 26. f4 {[%clk
00:10:36]} {[%emt 00:01:37]} Bg4 {[%clk 00:01:33]} {[%emt 00:01:43]} 27. Rf2
{[%clk 00:02:43]} {[%emt 00:08:24]} Bd7 {[%clk 00:02:01]} {[%emt 00:00:02]} 28.
Bc3 {[%clk 00:02:30]} {[%emt 00:00:44]} Be8 {[%clk 00:01:39]} {[%emt 00:00:51]}
29. fxe5 {[%clk 00:01:50]} {[%emt 00:01:10]} Nxe5 {[%clk 00:01:56]} {[%emt
00:00:12]} 30. Bxe5 {[%clk 00:02:01]} {[%emt 00:00:20]} fxe5 {[%clk 00:02:23]}
{[%emt 00:00:02]} 31. Ra1 {[%clk 00:02:28]} {[%emt 00:00:03]} Rd7 {[%clk
00:02:07]} {[%emt 00:00:46]} 32. Ra6 {[%clk 00:00:47]} {[%emt 00:02:12]} Kh8
{[%clk 00:01:58]} {[%emt 00:00:39]} 33. Ng5 {[%clk 00:00:53]} {[%emt 00:00:23]}
Re7 {[%clk 00:02:17]} {[%emt 00:00:11]} 34. Bd5 {[%clk 00:01:03]} {[%emt
00:00:20]} e4 {[%clk 00:02:08]} {[%emt 00:00:40]} 35. Nxe4 {[%clk 00:01:09]}
{[%emt 00:00:24]} Bd4 {[%clk 00:01:36]} {[%emt 00:01:01]} 36. Rf8+ {[%clk
00:01:33]} {[%emt 00:00:06]} Kg7 {[%clk 00:01:47]} {[%emt 00:00:19]} 37. Rg8+
{[%clk 00:00:51]} {[%emt 00:01:13]} Kh6 {[%clk 00:02:14]} {[%emt 00:00:02]} 38.
Bc6 {[%clk 00:00:49]} {[%emt 00:00:32]} Bxc6 {[%clk 00:00:49]} {[%emt
00:01:55]} 39. Rxb8 {[%clk 00:01:09]} {[%emt 00:00:10]} Bxe4 {[%clk 00:00:33]}
{[%emt 00:00:46]} 40. dxe4 {[%clk 00:01:31]} {[%emt 00:00:08]} Rxe4 {[%clk
00:00:59]} {[%emt 00:00:04]} 41. Rbxb6 {[%clk 00:24:56]} {[%emt 00:07:05]} Rg4
{[%clk 00:30:52]} {[%emt 00:00:36]} 42. Re6 {[%clk 00:22:56]} {[%emt 00:02:32]}
Bf2 {[%clk 00:30:07]} {[%emt 00:01:14]} 43. Kg2 {[%clk 00:17:38]} {[%emt
00:05:48]} Be1 {[%clk 00:28:44]} {[%emt 00:01:52]} 44. Ra3 {[%clk 00:18:02]}
{[%emt 00:00:07]} Rd4 {[%clk 00:24:21]} {[%emt 00:04:53]} 45. Ra7 {[%clk
00:16:37]} {[%emt 00:01:56]} Bxg3 {[%clk 00:20:38]} {[%emt 00:04:12]} 46. Kxg3
{[%clk 00:10:51]} {[%emt 00:06:16]} Rg4+ {[%clk 00:20:26]} {[%emt 00:00:42]} 47.
Kf3 {[%clk 00:11:07]} {[%emt 00:00:15]} Rf4+ {[%clk 00:20:26]} {[%emt
00:00:29]} 48. Ke3 {[%clk 00:11:21]} {[%emt 00:00:16]} Rxh4 {[%clk 00:18:42]}
{[%emt 00:02:14]} 49. Raa6 {[%clk 00:10:03]} {[%emt 00:01:49]} Rg4 {[%clk
00:17:10]} {[%emt 00:02:01]} 50. Kf3 {[%clk 00:09:15]} {[%emt 00:01:17]} Rg1
{[%clk 00:17:23]} {[%emt 00:00:18]} 51. Rec6 {[%clk 00:09:16]} {[%emt
00:00:29]} Rg5 {[%clk 00:16:25]} {[%emt 00:01:27]} 52. e4 {[%clk 00:07:23]}
{[%emt 00:02:24]} h4 {[%clk 00:16:00]} {[%emt 00:00:55]} 53. Ra8 {[%clk
00:06:30]} {[%emt 00:01:24]} Kg7 {[%clk 00:12:52]} {[%emt 00:03:37]} 54. Rc7+
{[%clk 00:06:48]} {[%emt 00:00:12]} 1-0

[Event "The Elitserien 2024/25: round 1 - 3"]
[Site "Scandic Infra City, Kanalvagen 10, Upplands Vasby, Sweden"]
[Date "2024.10.06"]
[Round "3.4"]
[White "Galperin, Platon"]
[Black "Schneider, Stefan"]
[Result "1-0"]
[TimeControl "90 minutes for 40 moves + 30 minutes for the rest of the game + 30 seconds per move from move one."]
[WhiteTitle "GM"]
[BlackTitle "IM"]
[WhiteFideId "14165414"]
[BlackFideId "1703013"]
[WhiteElo "2518"]
[BlackElo "2384"]

1. e4 {[%clk 01:20:34]} {[%emt 00:06:23]} c6 {[%clk 01:30:23]} {[%emt
00:00:39]} 2. d4 {[%clk 01:20:58]} {[%emt 00:00:06]} d5 {[%clk 01:30:41]}
{[%emt 00:00:11]} 3. e5 {[%clk 01:21:24]} {[%emt 00:00:04]} c5 {[%clk
01:29:49]} {[%emt 00:01:21]} 4. c3 {[%clk 01:21:43]} {[%emt 00:00:12]} Nc6
{[%clk 01:28:47]} {[%emt 00:01:32]} 5. Bb5 {[%clk 01:21:08]} {[%emt 00:01:05]}
Qb6 {[%clk 01:16:06]} {[%emt 00:13:11]} 6. Ba4 {[%clk 01:20:16]} {[%emt
00:01:21]} e6 {[%clk 01:09:38]} {[%emt 00:06:59]} 7. Ne2 {[%clk 01:07:12]}
{[%emt 00:13:34]} cxd4 {[%clk 00:57:50]} {[%emt 00:12:19]} 8. cxd4 {[%clk
01:06:21]} {[%emt 00:01:20]} Nge7 {[%clk 00:56:51]} {[%emt 00:01:29]} 9. Nbc3
{[%clk 00:57:49]} {[%emt 00:09:02]} Nf5 {[%clk 00:49:10]} {[%emt 00:08:12]} 10.
O-O {[%clk 00:57:56]} {[%emt 00:00:21]} Be7 {[%clk 00:44:41]} {[%emt 00:05:00]}
11. Be3 {[%clk 00:56:53]} {[%emt 00:01:33]} O-O {[%clk 00:24:35]} {[%emt
00:20:37]} 12. Bc2 {[%clk 00:53:12]} {[%emt 00:04:10]} Rd8 {[%clk 00:16:32]}
{[%emt 00:08:33]} 13. a3 {[%clk 00:50:48]} {[%emt 00:02:55]} Na5 {[%clk
00:13:57]} {[%emt 00:03:05]} 14. Bc1 {[%clk 00:45:14]} {[%emt 00:06:03]} Nc6
{[%clk 00:12:57]} {[%emt 00:01:30]} 15. Na4 {[%clk 00:28:41]} {[%emt 00:17:03]}
Qc7 {[%clk 00:12:59]} {[%emt 00:00:28]} 16. Qd3 {[%clk 00:28:57]} {[%emt
00:00:14]} g6 {[%clk 00:12:52]} {[%emt 00:00:37]} 17. Nac3 {[%clk 00:29:20]}
{[%emt 00:00:06]} Qb6 {[%clk 00:10:55]} {[%emt 00:02:28]} 18. Be3 {[%clk
00:24:40]} {[%emt 00:05:10]} Bd7 {[%clk 00:08:48]} {[%emt 00:02:38]} 19. b4
{[%clk 00:22:29]} {[%emt 00:02:40]} a6 {[%clk 00:08:30]} {[%emt 00:00:48]} 20.
Ng3 {[%clk 00:21:40]} {[%emt 00:01:19]} Be8 {[%clk 00:04:51]} {[%emt 00:04:08]}
21. Nxf5 {[%emt 00:00:58]} exf5 {[%clk 00:04:35]} {[%emt 00:00:42]} 22. Bb3
{[%clk 00:21:33]} {[%emt 00:00:13]} f4 {[%clk 00:04:10]} {[%emt 00:00:56]} 23.
Bxf4 {[%clk 00:21:17]} {[%emt 00:00:46]} Qxd4 {[%clk 00:04:20]} {[%emt
00:00:21]} 24. Qg3 {[%clk 00:21:39]} {[%emt 00:00:06]} g5 {[%clk 00:01:22]}
{[%emt 00:03:28]} 25. Bxg5 {[%clk 00:21:30]} {[%emt 00:00:39]} Qxe5 {[%clk
00:01:07]} {[%emt 00:00:45]} 26. Qxe5 {[%clk 00:21:52]} {[%emt 00:00:09]} Nxe5
{[%clk 00:01:26]} {[%emt 00:00:11]} 27. Bxe7 {[%clk 00:22:15]} {[%emt
00:00:06]} 1-0